[Event "Titled Tuesday Blitz March 29 Early 2022"]
[White "Aaditya Dhingra"]
[Black "Fernandez, Daniel Howard"]
[WhiteFideId "25678191"]
[BlackFideId "5801605"]
[WhiteElo "1849"]
[BlackElo "2466"]
[Result "1-0"]
[Round "01"]
[TimeControl "180+1"]
[Date "2022.03.29"]
[WhiteClock "0:00:08"]
[BlackClock "0:00:13"]

1. e4 {[%clk 0:02:59]}  e5 {[%clk 0:02:58]} 2. Nf3 {[%clk 0:02:58]}  Nc6 {[%clk 0:02:58]} 3. Bb5 {[%clk 0:02:57]}  a6 {[%clk 0:02:58]} 4. Bxc6 {[%clk 0:02:57]}  dxc6 {[%clk 0:02:58]} 5. O-O {[%clk 0:02:57]}  Bg4 {[%clk 0:02:58]} 6. h3 {[%clk 0:02:56]}  h5 {[%clk 0:02:58]} 7. d3 {[%clk 0:02:55]}  Qf6 {[%clk 0:02:56]} 8. Nbd2 {[%clk 0:02:54]}  Ne7 {[%clk 0:02:56]} 9. Nc4 {[%clk 0:02:53]}  Bxf3 {[%clk 0:02:51]} 10. Qxf3 {[%clk 0:02:52]}  Qxf3 {[%clk 0:02:52]} 11. gxf3 {[%clk 0:02:53]}  Ng6 {[%clk 0:02:53]} 12. Rd1 {[%clk 0:02:47]}  O-O-O {[%clk 0:02:50]} 13. Kf1 {[%clk 0:02:45]}  Be7 {[%clk 0:02:39]} 14. Be3 {[%clk 0:02:38]}  Bf6 {[%clk 0:02:33]} 15. a4 {[%clk 0:02:34]}  b6 {[%clk 0:02:31]} 16. Ke2 {[%clk 0:02:31]}  Rd7 {[%clk 0:02:27]} 17. Rd2 {[%clk 0:02:14]}  Kb7 {[%clk 0:02:28]} 18. c3 {[%clk 0:02:11]}  Rhd8 {[%clk 0:02:27]} 19. b4 {[%clk 0:02:10]}  Nf8 {[%clk 0:02:21]} 20. Rad1 {[%clk 0:01:27]}  Ne6 {[%clk 0:02:21]} 21. Na3 {[%clk 0:01:14]}  Bg5 {[%clk 0:02:11]} 22. d4 {[%clk 0:01:06]}  exd4 {[%clk 0:02:07]} 23. cxd4 {[%clk 0:01:05]}  Nf4+ {[%clk 0:01:58]} 24. Bxf4 {[%clk 0:01:02]}  Bxf4 {[%clk 0:01:59]} 25. Rd3 {[%clk 0:01:02]}  g6 {[%clk 0:01:59]} 26. Nc4 {[%clk 0:01:00]}  Re7 {[%clk 0:01:57]} 27. d5 {[%clk 0:00:59]}  cxd5 {[%clk 0:01:49]} 28. Rxd5 {[%clk 0:00:59]}  Rxd5 {[%clk 0:01:50]} 29. Rxd5 {[%clk 0:00:59]}  f5 {[%clk 0:01:50]} 30. Kd3 {[%clk 0:00:59]}  c6 {[%clk 0:01:10]} 31. Rd8 {[%clk 0:00:55]}  b5 {[%clk 0:01:11]} 32. Na5+ {[%clk 0:00:51]}  Kc7 {[%clk 0:01:11]} 33. Rg8 {[%clk 0:00:46]}  Rd7+ {[%clk 0:01:11]} 34. Kc2 {[%clk 0:00:43]}  Rd2+ {[%clk 0:01:08]} 35. Kc3 {[%clk 0:00:43]}  Rxf2 {[%clk 0:01:09]} 36. Rg7+ {[%clk 0:00:32]}  Kc8 {[%clk 0:00:59]} 37. Nxc6 {[%clk 0:00:30]}  Rxf3+ {[%clk 0:00:59]} 38. Kd4 {[%clk 0:00:29]}  bxa4 {[%clk 0:00:55]} 39. e5 {[%clk 0:00:24]}  a3 {[%clk 0:00:51]} 40. e6 {[%clk 0:00:16]}  Bc7 {[%clk 0:00:21]} 41. Rg8+ {[%clk 0:00:11]}  Kb7 {[%clk 0:00:21]} 42. e7 {[%clk 0:00:11]}  a2 {[%clk 0:00:20]} 43. e8=Q {[%clk 0:00:09]}  a1=Q+ {[%clk 0:00:20]} 44. Kd5 {[%clk 0:00:09]}  Qd1+ {[%clk 0:00:19]} 45. Nd4 {[%clk 0:00:08]}  Rd3 {[%clk 0:00:13]} 46. Qc6+ {[%clk 0:00:08]} 1-0


[Site "https://www.chess.com"]

[Event "Titled Tuesday Blitz March 29 Early 2022"]
[White "Andreikin, Dmitry"]
[Black "Coto Mederos, Michel"]
[WhiteFideId "4158814"]
[BlackFideId "3508528"]
[WhiteElo "2736"]
[BlackElo "2427"]
[Result "1-0"]
[Round "01"]
[TimeControl "180+1"]
[Date "2022.03.29"]
[WhiteClock "0:00:37"]
[BlackClock "0:00:07"]

1. d4 {[%clk 0:03:00]}  d5 {[%clk 0:02:59]} 2. c4 {[%clk 0:03:00]}  e6 {[%clk 0:02:59]} 3. Nc3 {[%clk 0:02:58]}  Nf6 {[%clk 0:02:58]} 4. cxd5 {[%clk 0:02:56]}  exd5 {[%clk 0:02:58]} 5. Bg5 {[%clk 0:02:56]}  Be7 {[%clk 0:02:54]} 6. e3 {[%clk 0:02:55]}  c6 {[%clk 0:02:49]} 7. Bd3 {[%clk 0:02:54]}  O-O {[%clk 0:02:48]} 8. Nge2 {[%clk 0:02:54]}  Nbd7 {[%clk 0:02:45]} 9. O-O {[%clk 0:02:53]}  Re8 {[%clk 0:02:45]} 10. Qc2 {[%clk 0:02:52]}  Nf8 {[%clk 0:02:45]} 11. Rae1 {[%clk 0:02:52]}  Ng6 {[%clk 0:02:31]} 12. f3 {[%clk 0:02:50]}  h6 {[%clk 0:02:13]} 13. Bxh6 {[%clk 0:02:39]}  gxh6 {[%clk 0:02:02]} 14. Bxg6 {[%clk 0:02:39]}  fxg6 {[%clk 0:02:03]} 15. Qxg6+ {[%clk 0:02:39]}  Kh8 {[%clk 0:02:03]} 16. e4 {[%clk 0:02:31]}  Bf8 {[%clk 0:01:39]} 17. exd5 {[%clk 0:02:25]}  cxd5 {[%clk 0:01:37]} 18. Nf4 {[%clk 0:02:24]}  Bg7 {[%clk 0:01:24]} 19. Ncxd5 {[%clk 0:02:20]}  Bd7 {[%clk 0:01:15]} 20. Qf7 {[%clk 0:01:45]}  Bf5 {[%clk 0:00:51]} 21. g4 {[%clk 0:01:25]}  Qd7 {[%clk 0:00:43]} 22. Ne7 {[%clk 0:00:59]}  Qxd4+ {[%clk 0:00:33]} 23. Kg2 {[%clk 0:00:59]}  Qxf4 {[%clk 0:00:32]} 24. Nxf5 {[%clk 0:00:59]}  Rg8 {[%clk 0:00:28]} 25. Ne7 {[%clk 0:00:57]}  Kh7 {[%clk 0:00:11]} 26. Qg6+ {[%clk 0:00:52]}  Kh8 {[%clk 0:00:11]} 27. Qd3 {[%clk 0:00:50]}  Bf8 {[%clk 0:00:12]} 28. Nxg8 {[%clk 0:00:47]}  Kxg8 {[%clk 0:00:10]} 29. Re6 {[%clk 0:00:44]}  Bg7 {[%clk 0:00:09]} 30. Rfe1 {[%clk 0:00:44]}  Rc8 {[%clk 0:00:09]} 31. Re7 {[%clk 0:00:44]}  Kh8 {[%clk 0:00:06]} 32. Rxb7 {[%clk 0:00:38]}  Rf8 {[%clk 0:00:06]} 33. Ree7 {[%clk 0:00:36]}  Nxg4 {[%clk 0:00:06]} 34. Qh7+ {[%clk 0:00:35]}  Kxh7 {[%clk 0:00:05]} 35. Rxg7+ {[%clk 0:00:36]}  Kh8 {[%clk 0:00:06]} 36. Rh7+ {[%clk 0:00:37]}  Kg8 {[%clk 0:00:07]} 37. Rbg7# {[%clk 0:00:37]} 1-0


[Site "https://www.chess.com"]

[Event "Titled Tuesday Blitz March 29 Early 2022"]
[White "Aradhya, Garg"]
[Black "Miszler, Levente"]
[WhiteFideId "25006746"]
[BlackFideId "763276"]
[WhiteElo "2169"]
[BlackElo "1966"]
[Result "1-0"]
[Round "01"]
[TimeControl "180+1"]
[Date "2022.03.30"]
[WhiteClock "0:00:20"]
[BlackClock "0:00:09"]

1. d4 {[%clk 0:03:00]}  e6 {[%clk 0:02:59]} 2. Nf3 {[%clk 0:02:57]}  d5 {[%clk 0:02:58]} 3. c4 {[%clk 0:02:55]}  c6 {[%clk 0:02:43]} 4. Bg5 {[%clk 0:02:53]}  Be7 {[%clk 0:02:42]} 5. Bxe7 {[%clk 0:02:53]}  Nxe7 {[%clk 0:02:42]} 6. e3 {[%clk 0:02:52]}  Nd7 {[%clk 0:02:39]} 7. Nc3 {[%clk 0:02:52]}  Nf6 {[%clk 0:02:39]} 8. Rc1 {[%clk 0:02:51]}  Nf5 {[%clk 0:02:38]} 9. Bd3 {[%clk 0:02:47]}  Nd6 {[%clk 0:02:37]} 10. c5 {[%clk 0:02:47]}  Nde4 {[%clk 0:02:37]} 11. O-O {[%clk 0:02:47]}  O-O {[%clk 0:02:25]} 12. Qc2 {[%clk 0:02:42]}  Nxc3 {[%clk 0:02:24]} 13. Qxc3 {[%clk 0:02:43]}  Re8 {[%clk 0:02:19]} 14. b4 {[%clk 0:02:40]}  Nd7 {[%clk 0:02:13]} 15. Rfe1 {[%clk 0:02:31]}  Qf6 {[%clk 0:02:02]} 16. e4 {[%clk 0:02:14]}  dxe4 {[%clk 0:01:59]} 17. Rxe4 {[%clk 0:02:15]}  h6 {[%clk 0:01:53]} 18. Rce1 {[%clk 0:02:09]}  Rd8 {[%clk 0:01:45]} 19. h4 {[%clk 0:01:56]}  Qe7 {[%clk 0:01:45]} 20. Ne5 {[%clk 0:01:42]}  Nf6 {[%clk 0:01:37]} 21. g3 {[%clk 0:01:39]}  Bd7 {[%clk 0:01:24]} 22. R4e2 {[%clk 0:01:35]}  Be8 {[%clk 0:01:22]} 23. a4 {[%clk 0:01:21]}  Nd5 {[%clk 0:01:21]} 24. Qd2 {[%clk 0:01:16]}  b6 {[%clk 0:01:17]} 25. Nc4 {[%clk 0:01:00]}  bxc5 {[%clk 0:01:06]} 26. bxc5 {[%clk 0:00:53]}  Rab8 {[%clk 0:01:04]} 27. Bc2 {[%clk 0:00:43]}  Rb4 {[%clk 0:00:56]} 28. Nd6 {[%clk 0:00:42]}  Rdb8 {[%clk 0:00:54]} 29. Qd3 {[%clk 0:00:39]}  g6 {[%clk 0:00:52]} 30. h5 {[%clk 0:00:37]}  Qf6 {[%clk 0:00:18]} 31. hxg6 {[%clk 0:00:31]}  Rxd4 {[%clk 0:00:18]} 32. gxf7+ {[%clk 0:00:30]}  Bxf7 {[%clk 0:00:18]} 33. Qh7+ {[%clk 0:00:28]}  Kf8 {[%clk 0:00:19]} 34. Nxf7 {[%clk 0:00:28]}  Qxf7 {[%clk 0:00:18]} 35. Qxh6+ {[%clk 0:00:28]}  Ke7 {[%clk 0:00:17]} 36. Rxe6+ {[%clk 0:00:27]}  Kd7 {[%clk 0:00:18]} 37. Rxc6 {[%clk 0:00:21]}  Rf8 {[%clk 0:00:09]} 38. Qd6# {[%clk 0:00:20]} 1-0


[Site "https://www.chess.com"]

[Event "Titled Tuesday Blitz March 29 Early 2022"]
[White "Aravindh, Chithambaram VR."]
[Black "Kouskoutis, Georgios-Alexandros"]
[WhiteFideId "5072786"]
[BlackFideId "4234049"]
[WhiteElo "2561"]
[BlackElo "2130"]
[Result "0-1"]
[Round "01"]
[TimeControl "180+1"]
[Date "2022.03.29"]
[WhiteClock "0:00:02"]
[BlackClock "0:00:06"]

1. b3 {[%clk 0:03:00]}  Nf6 {[%clk 0:02:58]} 2. Bb2 {[%clk 0:03:01]}  d5 {[%clk 0:02:58]} 3. Nf3 {[%clk 0:03:00]}  e6 {[%clk 0:02:57]} 4. g3 {[%clk 0:03:01]}  Be7 {[%clk 0:02:57]} 5. Bg2 {[%clk 0:03:02]}  O-O {[%clk 0:02:58]} 6. O-O {[%clk 0:03:02]}  c5 {[%clk 0:02:58]} 7. c4 {[%clk 0:03:02]}  Nc6 {[%clk 0:02:48]} 8. cxd5 {[%clk 0:03:01]}  Nxd5 {[%clk 0:02:48]} 9. Nc3 {[%clk 0:03:01]}  Nxc3 {[%clk 0:02:30]} 10. Bxc3 {[%clk 0:03:02]}  Bd7 {[%clk 0:02:31]} 11. Rc1 {[%clk 0:03:01]}  Rc8 {[%clk 0:02:31]} 12. d4 {[%clk 0:02:46]}  cxd4 {[%clk 0:02:05]} 13. Nxd4 {[%clk 0:02:47]}  Nxd4 {[%clk 0:01:59]} 14. Bxd4 {[%clk 0:02:36]}  Rxc1 {[%clk 0:01:09]} 15. Qxc1 {[%clk 0:02:37]}  Bb5 {[%clk 0:01:05]} 16. Qb2 {[%clk 0:02:37]}  Bf6 {[%clk 0:00:58]} 17. Bxf6 {[%clk 0:02:34]}  Qxf6 {[%clk 0:00:57]} 18. Qxf6 {[%clk 0:02:26]}  gxf6 {[%clk 0:00:58]} 19. Bxb7 {[%clk 0:02:21]}  Bxe2 {[%clk 0:00:51]} 20. Re1 {[%clk 0:02:20]}  Bh5 {[%clk 0:00:43]} 21. Rc1 {[%clk 0:01:42]}  Rd8 {[%clk 0:00:36]} 22. Rc5 {[%clk 0:01:21]}  Bg6 {[%clk 0:00:30]} 23. Bf3 {[%clk 0:01:14]}  Rd7 {[%clk 0:00:18]} 24. h4 {[%clk 0:01:11]}  h6 {[%clk 0:00:17]} 25. b4 {[%clk 0:01:09]}  Kf8 {[%clk 0:00:18]} 26. a4 {[%clk 0:01:08]}  Ke7 {[%clk 0:00:18]} 27. b5 {[%clk 0:01:02]}  e5 {[%clk 0:00:13]} 28. a5 {[%clk 0:00:57]}  e4 {[%clk 0:00:10]} 29. Bg4 {[%clk 0:00:57]}  Rb7 {[%clk 0:00:04]} 30. a6 {[%clk 0:00:54]}  Rb6 {[%clk 0:00:03]} 31. Rc7+ {[%clk 0:00:53]}  Kd6 {[%clk 0:00:04]} 32. Rxa7 {[%clk 0:00:50]}  Rxb5 {[%clk 0:00:05]} 33. h5 {[%clk 0:00:30]}  Bh7 {[%clk 0:00:04]} 34. Rxf7 {[%clk 0:00:29]}  Rb1+ {[%clk 0:00:04]} 35. Kg2 {[%clk 0:00:27]}  Bg8 {[%clk 0:00:04]} 36. Rxf6+ {[%clk 0:00:25]}  Ke5 {[%clk 0:00:04]} 37. Rf5+ {[%clk 0:00:17]}  Kd4 {[%clk 0:00:04]} 38. a7 {[%clk 0:00:08]}  Ra1 {[%clk 0:00:04]} 39. Rf8 {[%clk 0:00:05]}  Bd5 {[%clk 0:00:05]} 40. Rd8 {[%clk 0:00:05]}  Ke5 {[%clk 0:00:03]} 41. Kh2 {[%clk 0:00:03]}  e3 {[%clk 0:00:03]} 42. Rxd5+ {[%clk 0:00:02]}  Kxd5 {[%clk 0:00:03]} 43. fxe3 {[%clk 0:00:02]}  Ke4 {[%clk 0:00:03]} 44. Bh3 {[%clk 0:00:01]}  Rxa7 {[%clk 0:00:04]} 45. Bg2+ {[%clk 0:00:01]}  Kxe3 {[%clk 0:00:04]} 46. Kh3 {[%clk 0:00:02]}  Rg7 {[%clk 0:00:05]} 47. Kh4 {[%clk 0:00:02]}  Kf2 {[%clk 0:00:05]} 48. Bd5 {[%clk 0:00:02]}  Rxg3 {[%clk 0:00:06]} 49. Ba8 {[%clk 0:00:02]}  Rg5 {[%clk 0:00:07]} 50. Bc6 {[%clk 0:00:01]}  Ke3 {[%clk 0:00:08]} 51. Bb7 {[%clk 0:00:01]}  Kf4 {[%clk 0:00:08]} 52. Ba8 {[%clk 0:00:02]}  Ra5 {[%clk 0:00:09]} 53. Bb7 {[%clk 0:00:02]}  Rb5 {[%clk 0:00:09]} 54. Ba8 {[%clk 0:00:02]}  Rb1 {[%clk 0:00:06]} 55. Kh3 {[%clk 0:00:02]}  Rb3+ {[%clk 0:00:05]} 56. Kh2 {[%clk 0:00:02]}  Kg5 {[%clk 0:00:05]} 57. Bd5 {[%clk 0:00:02]}  Rb2+ {[%clk 0:00:05]} 58. Kg3 {[%clk 0:00:02]}  Kxh5 {[%clk 0:00:06]} 59. Bf3+ {[%clk 0:00:03]}  Kg5 {[%clk 0:00:06]} 60. Bc6 {[%clk 0:00:03]}  h5 {[%clk 0:00:07]} 61. Kh3 {[%clk 0:00:04]}  Rb3+ {[%clk 0:00:07]} 62. Kh2 {[%clk 0:00:04]}  Rd3 {[%clk 0:00:04]} 63. Be4 {[%clk 0:00:04]}  Re3 {[%clk 0:00:04]} 64. Bc6 {[%clk 0:00:03]}  Kg4 {[%clk 0:00:04]} 65. Bd7+ {[%clk 0:00:04]}  Kf4 {[%clk 0:00:04]} 66. Bc6 {[%clk 0:00:03]}  h4 {[%clk 0:00:05]} 67. Bd7 {[%clk 0:00:03]}  Rd3 {[%clk 0:00:04]} 68. Bc8 {[%clk 0:00:03]}  h3 {[%clk 0:00:03]} 69. Bxh3 {[%clk 0:00:03]}  Rd2+ {[%clk 0:00:03]} 70. Bg2 {[%clk 0:00:03]}  Kg4 {[%clk 0:00:04]} 71. Kg1 {[%clk 0:00:02]}  Kg3 {[%clk 0:00:04]} 72. Bf1 {[%clk 0:00:02]}  Rd1 {[%clk 0:00:05]} 73. Kh1 {[%clk 0:00:02]}  Rxf1# {[%clk 0:00:06]} 0-1


[Site "https://www.chess.com"]

[Event "Titled Tuesday Blitz March 29 Early 2022"]
[White "Barrientos, Sergio E"]
[Black "Todorovic, Bojan"]
[WhiteFideId "4401824"]
[BlackFideId "917087"]
[WhiteElo "2397"]
[BlackElo "2266"]
[Result "1-0"]
[Round "01"]
[TimeControl "180+1"]
[Date "2022.03.30"]
[WhiteClock "0:00:18"]
[BlackClock "0:00:01"]

1. d4 {[%clk 0:02:54]}  d5 {[%clk 0:02:53]} 2. c4 {[%clk 0:02:54]}  dxc4 {[%clk 0:02:49]} 3. Nf3 {[%clk 0:02:52]}  a6 {[%clk 0:02:47]} 4. a4 {[%clk 0:02:52]}  Nc6 {[%clk 0:02:46]} 5. e3 {[%clk 0:02:45]}  Bg4 {[%clk 0:02:41]} 6. Bxc4 {[%clk 0:02:44]}  e6 {[%clk 0:02:40]} 7. h3 {[%clk 0:02:43]}  Bh5 {[%clk 0:02:38]} 8. Nbd2 {[%clk 0:02:42]}  Nf6 {[%clk 0:02:34]} 9. O-O {[%clk 0:02:40]}  Bd6 {[%clk 0:02:32]} 10. b3 {[%clk 0:02:33]}  O-O {[%clk 0:02:29]} 11. Bb2 {[%clk 0:02:33]}  Nd5 {[%clk 0:02:18]} 12. Re1 {[%clk 0:02:08]}  Bb4 {[%clk 0:02:12]} 13. Rc1 {[%clk 0:01:58]}  Qe7 {[%clk 0:02:08]} 14. Be2 {[%clk 0:01:52]}  Rad8 {[%clk 0:01:55]} 15. Qc2 {[%clk 0:01:51]}  Bg6 {[%clk 0:01:54]} 16. Bd3 {[%clk 0:01:45]}  Bxd2 {[%clk 0:01:46]} 17. Qxd2 {[%clk 0:01:42]}  Qb4 {[%clk 0:01:45]} 18. Qxb4 {[%clk 0:01:39]}  Ncxb4 {[%clk 0:01:41]} 19. Bxg6 {[%clk 0:01:39]}  hxg6 {[%clk 0:01:41]} 20. e4 {[%clk 0:01:26]}  Nf4 {[%clk 0:01:40]} 21. Ba3 {[%clk 0:01:25]}  Nbd3 {[%clk 0:01:32]} 22. Bxf8 {[%clk 0:01:13]}  Kxf8 {[%clk 0:01:31]} 23. Rxc7 {[%clk 0:01:05]}  Nxe1 {[%clk 0:01:30]} 24. Nxe1 {[%clk 0:01:05]}  Rxd4 {[%clk 0:01:30]} 25. Rxb7 {[%clk 0:00:57]}  Rd1 {[%clk 0:01:23]} 26. Kf1 {[%clk 0:00:57]}  Rb1 {[%clk 0:01:23]} 27. Rd7 {[%clk 0:00:51]}  Rxb3 {[%clk 0:01:20]} 28. g3 {[%clk 0:00:43]}  Nxh3 {[%clk 0:01:17]} 29. Nd3 {[%clk 0:00:43]}  Ng5 {[%clk 0:01:05]} 30. Nc5 {[%clk 0:00:38]}  Rb1+ {[%clk 0:01:01]} 31. Ke2 {[%clk 0:00:38]}  Rb4 {[%clk 0:00:44]} 32. f3 {[%clk 0:00:32]}  e5 {[%clk 0:00:37]} 33. Ra7 {[%clk 0:00:24]}  Rc4 {[%clk 0:00:25]} 34. Nd7+ {[%clk 0:00:24]}  Ke8 {[%clk 0:00:21]} 35. Nxe5 {[%clk 0:00:23]}  Rxa4 {[%clk 0:00:20]} 36. Nc6 {[%clk 0:00:23]}  Ra2+ {[%clk 0:00:19]} 37. Ke3 {[%clk 0:00:22]}  Ne6 {[%clk 0:00:19]} 38. Ne5 {[%clk 0:00:19]}  Nd8 {[%clk 0:00:17]} 39. f4 {[%clk 0:00:19]}  a5 {[%clk 0:00:17]} 40. Ra8 {[%clk 0:00:19]}  Ke7 {[%clk 0:00:16]} 41. g4 {[%clk 0:00:18]}  Ra3+ {[%clk 0:00:13]} 42. Kd2 {[%clk 0:00:16]}  Rg3 {[%clk 0:00:12]} 43. g5 {[%clk 0:00:16]}  Rg2+ {[%clk 0:00:12]} 44. Ke3 {[%clk 0:00:16]}  Ra2 {[%clk 0:00:11]} 45. Ra7+ {[%clk 0:00:16]}  Ke8 {[%clk 0:00:10]} 46. Ra8 {[%clk 0:00:16]}  Ke7 {[%clk 0:00:11]} 47. Nd3 {[%clk 0:00:16]}  Ra3 {[%clk 0:00:09]} 48. Kd4 {[%clk 0:00:15]}  Ne6+ {[%clk 0:00:08]} 49. Kc4 {[%clk 0:00:15]}  Ra4+ {[%clk 0:00:07]} 50. Kc3 {[%clk 0:00:16]}  Rb4 {[%clk 0:00:07]} 51. Ra7+ {[%clk 0:00:16]}  Kd6 {[%clk 0:00:06]} 52. Nxb4 {[%clk 0:00:15]}  axb4+ {[%clk 0:00:07]} 53. Kxb4 {[%clk 0:00:15]}  Nxf4 {[%clk 0:00:06]} 54. Rxf7 {[%clk 0:00:16]}  Ne6 {[%clk 0:00:06]} 55. Kc3 {[%clk 0:00:15]}  Nxg5 {[%clk 0:00:05]} 56. Rxg7 {[%clk 0:00:15]}  Nxe4+ {[%clk 0:00:05]} 57. Kd4 {[%clk 0:00:16]}  Nf6 {[%clk 0:00:04]} 58. Rxg6 {[%clk 0:00:16]}  Ke6 {[%clk 0:00:04]} 59. Rh6 {[%clk 0:00:17]}  Kf5 {[%clk 0:00:04]} 60. Rh1 {[%clk 0:00:17]}  Ke6 {[%clk 0:00:04]} 61. Rf1 {[%clk 0:00:18]}  Nd5 {[%clk 0:00:01]} 62. Rg1 {[%clk 0:00:18]} 1-0


[Site "https://www.chess.com"]

[Event "Titled Tuesday Blitz March 29 Early 2022"]
[White "Bashirli, Saadat"]
[Black "Tan, Jun Ying"]
[WhiteFideId "13429990"]
[BlackFideId "5710413"]
[WhiteElo "1173"]
[BlackElo "1827"]
[Result "0-1"]
[Round "01"]
[TimeControl "180+1"]
[Date "2022.03.30"]
[WhiteClock "0:01:39"]
[BlackClock "0:01:17"]

1. d4 {[%clk 0:03:00]}  Nf6 {[%clk 0:02:58]} 2. Bg5 {[%clk 0:02:57]}  c5 {[%clk 0:02:58]} 3. dxc5 {[%clk 0:02:56]}  e6 {[%clk 0:02:55]} 4. e4 {[%clk 0:02:51]}  Bxc5 {[%clk 0:02:52]} 5. Nc3 {[%clk 0:02:43]}  Qb6 {[%clk 0:02:46]} 6. Qf3 {[%clk 0:02:39]}  Qxb2 {[%clk 0:02:39]} 7. Rb1 {[%clk 0:02:38]}  Qa3 {[%clk 0:02:22]} 8. Nb5 {[%clk 0:02:23]}  Qxf3 {[%clk 0:02:11]} 9. Nxf3 {[%clk 0:02:23]}  Na6 {[%clk 0:02:10]} 10. Bxf6 {[%clk 0:02:21]}  gxf6 {[%clk 0:02:10]} 11. Bd3 {[%clk 0:02:16]}  Ke7 {[%clk 0:02:08]} 12. O-O {[%clk 0:02:12]}  d6 {[%clk 0:02:06]} 13. Nd2 {[%clk 0:02:09]}  Bd7 {[%clk 0:02:03]} 14. Nc3 {[%clk 0:02:07]}  Nb4 {[%clk 0:02:00]} 15. a3 {[%clk 0:02:00]}  Nxd3 {[%clk 0:01:58]} 16. cxd3 {[%clk 0:02:00]}  Rab8 {[%clk 0:01:51]} 17. a4 {[%clk 0:01:58]}  a6 {[%clk 0:01:42]} 18. Ne2 {[%clk 0:01:55]}  Bxa4 {[%clk 0:01:39]} 19. d4 {[%clk 0:01:55]}  Ba7 {[%clk 0:01:39]} 20. Rb4 {[%clk 0:01:53]}  Bb5 {[%clk 0:01:37]} 21. Re1 {[%clk 0:01:51]}  Rhc8 {[%clk 0:01:36]} 22. Nf4 {[%clk 0:01:49]}  Bd7 {[%clk 0:01:23]} 23. d5 {[%clk 0:01:46]}  b5 {[%clk 0:01:20]} 24. dxe6 {[%clk 0:01:44]}  fxe6 {[%clk 0:01:21]} 25. Nf3 {[%clk 0:01:42]}  a5 {[%clk 0:01:20]} 26. Rbb1 {[%clk 0:01:41]}  Rc2 {[%clk 0:01:17]} 27. Nh4 {[%clk 0:01:39]} 0-1


[Site "https://www.chess.com"]

[Event "Titled Tuesday Blitz March 29 Early 2022"]
[White "Bintang, Rasyid A. Hidayat"]
[Black "Rastbod, Ali"]
[WhiteFideId "7105355"]
[BlackFideId "12567477"]
[WhiteElo "2356"]
[BlackElo "2200"]
[Result "1-0"]
[Round "01"]
[TimeControl "180+1"]
[Date "2022.03.30"]
[WhiteClock "0:02:15"]
[BlackClock "0:02:26"]

1. d4 {[%clk 0:02:58]}  g6 {[%clk 0:02:59]} 2. Bf4 {[%clk 0:02:58]}  Bg7 {[%clk 0:02:58]} 3. Nc3 {[%clk 0:02:58]}  d5 {[%clk 0:02:58]} 4. e3 {[%clk 0:02:58]}  Nf6 {[%clk 0:02:59]} 5. h4 {[%clk 0:02:58]}  O-O {[%clk 0:02:58]} 6. h5 {[%clk 0:02:57]}  c5 {[%clk 0:02:58]} 7. hxg6 {[%clk 0:02:54]}  hxg6 {[%clk 0:02:59]} 8. Nf3 {[%clk 0:02:51]}  Nc6 {[%clk 0:02:57]} 9. Qd2 {[%clk 0:02:35]}  Ne4 {[%clk 0:02:40]} 10. Nxe4 {[%clk 0:02:33]}  dxe4 {[%clk 0:02:41]} 11. Ne5 {[%clk 0:02:31]}  cxd4 {[%clk 0:02:38]} 12. Nxc6 {[%clk 0:02:31]}  bxc6 {[%clk 0:02:37]} 13. exd4 {[%clk 0:02:29]}  Qxd4 {[%clk 0:02:38]} 14. Qxd4 {[%clk 0:02:24]}  Bxd4 {[%clk 0:02:39]} 15. c3 {[%clk 0:02:23]}  Bb6 {[%clk 0:02:34]} 16. Bc4 {[%clk 0:02:22]}  Bf5 {[%clk 0:02:26]} 17. Be5 {[%clk 0:02:15]} 1-0


[Site "https://www.chess.com"]